Cogmind - Beta 12 @@@ ROGUE MODE // 2023.03.15 @ 15:58:06 Player: Peregrine Result: Destroyed by WG-D3A(z) with Zionite Laser-S Performance ------------- Evolutions (1) 500 Regions Visited (5) 1000 Robots Destroyed (39) 195 Value Destroyed (534) 534 Prototype IDs (1) 20 Alien Tech Used (0) 0 Bonus (600) 600 TOTAL SCORE: 2849 Bonus ------- Met Imprinter 300 Was Imprinted 300 Cogmind --------- Core Integrity 0/400 Matter 290/300 Energy 62/100 System Corruption 0% Temperature Cool (9) Movement Core (100) Ox1 Location -7/Deep Caves Parts ------- > --- POWER (1) -------- (None) > --- PROPULSION (2) --- (None) > --- UTILITY (4) ------ Small Storage Unit Terrain Scan Processor Terrain Scan Processor > --- WEAPON (2) ------- (None) > --- INVENTORY (8) ---- Aluminum Leg Improved Carbon-fiber Leg Flight Unit Improved Cooling System Storm Laser Peak State ------------ > --- POWER ------------ Light Ion Engine > --- PROPULSION ------- Aluminum Leg Improved Carbon-fiber Leg > --- UTILITY ---------- Small Storage Unit Improved Terrain Scanner Terrain Scan Processor Terrain Scan Processor > --- WEAPON ----------- Heavy Riot Gun Medium Laser > --- INVENTORY -------- Flight Unit Flight Unit Improved Flight Unit Heat Sink Storm Laser [Rating: 22] Favorites ----------- Power Light Ion Engine Engine Light Ion Engine Propulsion Aluminum Leg Leg Aluminum Leg Flight Unit Flight Unit Utility Terrain Scan Processor Device Improved Terrain Scanner Storage Small Storage Unit Processor Terrain Scan Processor Weapon Medium Laser Energy Gun Medium Laser Build | -11 -10 -9 -9 -7 -7 ------- Run | Jun Mat Mat Min Zio Dee Slots Evolved 2 | . . 2 . . . Power . | . . . . . . Propulsion . | . . . . . . Utility 2 | . . 2 . . . Weapon . | . . . . . . Parts Attached 29 | 7 7 5 4 2 4 Power 5 | 1 3 1 . . . Engine 5 | 1 3 1 . . . Core . | . . . . . . Reactor . | . . . . . . Propulsion 12 | 2 2 2 1 1 4 Treads . | . . . . . . Leg 7 | 2 2 1 1 1 . Wheel . | . . . . . . Hover . | . . . . . . Flight 5 | . . 1 . . 4 Utility 6 | 2 . 2 2 . . Device 3 | 1 . . 2 . . Storage 1 | 1 . . . . . Processor 2 | . . 2 . . . Hackware . | . . . . . . Protection . | . . . . . . Artifact . | . . . . . . Weapon 6 | 2 2 . 1 1 . Energy Gun 6 | 2 2 . 1 1 . Energy Cannon . | . . . . . . Ballistic Gun . | . . . . . . Ballistic Cannon . | . . . . . . Launcher . | . . . . . . Special Weapon . | . . . . . . Impact Weapon . | . . . . . . Slashing Weapon . | . . . . . . Piercing Weapon . | . . . . . . Special Melee Weapon . | . . . . . . Unidentified Prototypes 1 | . . 1 . . . Parts Lost 7 | . 2 . 1 . 4 Power 2 | . 1 . . . 1 Propulsion . | . . . . . . Utility 1 | . . . . . 1 Weapon 4 | . 1 . 1 . 2 Highest Loss Streak 2 | . 2 . 1 . 2 To Critical Strikes . | . . . . . . Average Slot Usage (%) 92 | . 98 93 89 93 85 Engine 10 | . 13 11 11 11 7 Leg 22 | . 28 22 22 22 16 Device 11 | . 14 11 11 11 7 Storage 11 | . 14 11 11 11 11 Processor 16 | . . 15 22 22 22 Energy Gun 18 | . 27 22 12 16 14 Naked Turns . | . . . . . . Heaviest Build 15 | 13 13 12 12 15 15 Greatest Support 28 | 20 20 20 20 28 28 Greatest Overweight (x) . | . . . . . . Average Overweight (x) . | . . . . . . Largest Inventory Capacity 8 | 8 8 8 8 8 8 Average Capacity 7 | 7 8 8 8 8 8 Most Carried 8 | 4 8 8 8 8 8 Average Carried 5 | 1 3 7 8 7 8 Final Capacity 8 | 8 8 8 8 8 8 Final Carried 8 | 1 8 8 8 8 8 Class Distribution -------------------- 58% | Scavenger-Mutant 41% | Mutant Dominant Class ---------------- Mutant | -10/Materials Scavenger-Mutant | -9/Materials Scavenger-Mutant | -9/Mines Scavenger-Mutant | -7/Zion Scavenger-Mutant | -7/Deep Caves Resources | -11 -10 -9 -9 -7 -7 ----------- Run | Jun Mat Mat Min Zio Dee Matter Collected 463 | 270 60 50 35 20 28 Remotely . | . . . . . . Salvage Created 1134 | 336 435 270 56 . 37 Parts 71 | 19 32 20 . . . Haulers Intercepted . | . . . . . . Recyclers Shooed 3 | . 2 1 . . . Parts Field Recycled . | . . . . . . Retrieved Matter . | . . . . . . Parts Self-Destructed . | . . . . . . Prevented . | . . . . . . Kills | -11 -10 -9 -9 -7 -7 ------- Run | Jun Mat Mat Min Zio Dee Combat Hostiles Destroyed 15 | . 9 3 1 . 2 Guns 15 | . 9 3 1 . 2 Classes Destroyed 9 | 3 4 1 . . 1 Worker 11 | 4 4 3 . . . Builder 3 | . 2 1 . . . Tunneler 9 | 8 . 1 . . . Recycler 1 | 1 . . . . . Watcher 2 | . 1 1 . . . Swarmer 3 | . 3 . . . . Grunt 9 | . 6 2 1 . . Sentry 1 | . . 1 . . . Assembled 2 | . . . . . 2 Best Kill Streak 7 | 5 4 7 1 . 1 Combat Bots Only 3 | . 3 3 1 . 1 Max Kills in Single Turn 2 | 1 2 1 1 . 1 Gunslinging 1 | . 1 . . . . Exploded . | . . . . . . Melee . | . . . . . . Uniques/NPCs Destroyed . | . . . . . . Combat | -11 -10 -9 -9 -7 -7 -------- Run | Jun Mat Mat Min Zio Dee Damage Taken 1283 | . 415 119 181 . 568 Core 511 | . 102 26 69 . 314 Absorbed by Shields . | . . . . . . Core Remaining (%) 79 | 100 59 . . . . Volleys Fired 135 | 37 47 21 8 . 22 Largest 2 | 2 2 2 2 . 2 Hottest 110 | 100 100 90 100 . 110 Shots Fired 241 | 74 91 42 11 . 23 Gun 241 | 74 91 42 11 . 23 Cannon . | . . . . . . Launcher . | . . . . . . Special . | . . . . . . Kinetic . | . . . . . . Thermal 240 | 74 91 42 11 . 22 Explosive . | . . . . . . Electromagnetic 1 | . . . . . 1 Robot Hit Streak 9 | 7 4 8 9 . 4 Robot Miss Streak 5 | 4 5 3 2 . 3 Penetration Max . | . . . . . . Secondary Targets 2 | . 1 1 . . . Max Gunslinging Chain 1 | . 1 1 . . . Shots Hit Robots 137 | 43 46 27 9 . 12 Core Hits 60 | 14 24 13 4 . 5 Critical Kills . | . . . . . . Critical Parts Destroyed . | . . . . . . Critical Strikes 9 | 5 2 1 . . 1 Burn 9 | 5 2 1 . . 1 Melee Attacks . | . . . . . . Impact . | . . . . . . Slashing . | . . . . . . Piercing . | . . . . . . Sneak Attacks . | . . . . . . Combat Hostiles . | . . . . . . Follow-up Attacks . | . . . . . . Damage Inflicted 1683 | 547 553 317 112 . 154 Guns 1680 | 547 553 317 112 . 151 Cannons . | . . . . . . Explosions . | . . . . . . Melee . | . . . . . . Ramming 3 | . . . . . 3 Kinetic . | . . . . . . Thermal 1680 | 547 553 317 112 . 151 Explosive . | . . . . . . Electromagnetic . | . . . . . . Impact . | . . . . . . Slashing . | . . . . . . Piercing . | . . . . . . Highest Corruption . | . . . . . . Average Corruption . | . . . . . . Corruption Purged . | . . . . . . Corruption Blocked . | . . . . . . Overload Shots . | . . . . . . Overflow Damage . | . . . . . . Projectiles . | . . . . . . Explosions . | . . . . . . Melee . | . . . . . . Knockbacks . | . . . . . . Impact . | . . . . . . Kinetic . | . . . . . . Secondary . | . . . . . . Self-Inflicted Damage . | . . . . . . Shots . | . . . . . . Rammed . | . . . . . . Targets Rammed 2 | . . . . . 2 Kicked 2 | . . . . . 2 Crushed . | . . . . . . Highest Temperature 276 | 276 264 217 66 . 152 Average Temperature 82 | 86 90 72 42 . 62 Received Heat Transfer 583 | . 165 57 102 . 259 Siege Activations . | . . . . . . Robots Corrupted . | . . . . . . Combat Hostiles . | . . . . . . Parts Fried . | . . . . . . Impact Corruptions . | . . . . . . Robots Melted . | . . . . . . Combat Hostiles . | . . . . . . Parts Melted 6 | 2 3 1 . . . Heat Transferred 5425 | 1998 1647 929 333 . 518 Parts Sabotaged . | . . . . . . Parts Stolen . | . . . . . . Parts Stripped . | . . . . . . Power Chain Reactions . | . . . . . . Missiles Intercepted . | . . . . . . Alert | -11 -10 -9 -9 -7 -7 ------- Run | Jun Mat Mat Min Zio Dee Peak Influence 263 | 65 263 200 113 . . Initial 78 | . . 28 78 . . Average 69 | 19 113 114 109 . . Maximum Alert Level 1 | . 1 1 . . . Low Security (%) 92 | 100 71 97 100 . . Level 1 7 | . 28 2 . . . Level 2 . | . . . . . . Level 3 . | . . . . . . Level 4 . | . . . . . . Level 5 . | . . . . . . High Security . | . . . . . . Max Security . | . . . . . . Squads Dispatched 3 | . 2 1 . . . Investigation 2 | . 2 . . . . Extermination . | . . . . . . Reinforcement 1 | . . 1 . . . Assault . | . . . . . . Garrison . | . . . . . . Intercept . | . . . . . . Searches Triggered . | . . . . . . Construction Impeded . | . . . . . . Haulers Reinforced . | . . . . . . Active Scanning Responses . | . . . . . . Cargo Convoy Interrupts . | . . . . . . Stealth | -11 -10 -9 -9 -7 -7 --------- Run | Jun Mat Mat Min Zio Dee Distress Signals . | . . . . . . Communications Jammed . | . . . . . . Distress Signals . | . . . . . . Times Spotted 40 | . 14 13 3 . 10 Peak Tracking Total 10 | . 3 6 3 . 10 Tactical Retreats 2 | . 1 . . . 1 Traps | -11 -10 -9 -9 -7 -7 ------- Run | Jun Mat Mat Min Zio Dee Traps Triggered 1 | . 1 . . . . Indirectly . | . . . . . . Trap Hack Attempts . | . . . . . . Triggered . | . . . . . . Disarmed . | . . . . . . Reprogrammed . | . . . . . . Reused . | . . . . . . Traps Extracted . | . . . . . . Installed . | . . . . . . Triggered . | . . . . . . Machines | -11 -10 -9 -9 -7 -7 ---------- Run | Jun Mat Mat Min Zio Dee Machines Disabled . | . . . . . . Max in Single Turn . | . . . . . . Machines Repaired . | . . . . . . Machines Sabotaged . | . . . . . . Overloaded Fab Kills . | . . . . . . Hacking | -11 -10 -9 -9 -7 -7 --------- Run | Jun Mat Mat Min Zio Dee Machines Accessed 6 | . 5 1 . . . Terminals 6 | . 5 1 . . . Fabricators . | . . . . . . Repair Stations . | . . . . . . Recycling Units . | . . . . . . Scanalyzers . | . . . . . . Garrison Access . | . . . . . . Total Hacks 20 | . 15 5 . . . Successful 7 | . 6 1 . . . Failed 13 | . 9 4 . . . Catastrophic 1 | . 1 . . . . Database Lockouts . | . . . . . . Manual 26 | . 11 5 . 10 . Terminals 20 | . 15 5 . . . Fabricators . | . . . . . . Repair Stations . | . . . . . . Recycling Units . | . . . . . . Scanalyzers . | . . . . . . Garrison Access . | . . . . . . Terminal Hacks 3 | . 3 . . . . Alert Level 1 | . 1 . . . . Unreport Threat 2 | . 2 . . . . Fabricator Hacks . | . . . . . . Repair Station Hacks . | . . . . . . Recycling Unit Hacks . | . . . . . . Scanalyzer . | . . . . . . Garrison Access Hacks . | . . . . . . Unauthorized Hacks 4 | . 3 1 . . . Terminals 4 | . 3 1 . . . Botnet 4 | . 3 1 . . . Fabricators . | . . . . . . Repair Stations . | . . . . . . Recycling Units . | . . . . . . Scanalyzers . | . . . . . . Garrison Access . | . . . . . . Data Cores Recovered . | . . . . . . Used . | . . . . . . Hacking Detections 6 | . 5 1 . . . Full Trace Events 1 | . 1 . . . . Feedback Events . | . . . . . . Feedback Blocked . | . . . . . . Robot Schematics Acquired . | . . . . . . Robots Built . | . . . . . . Authchips . | . . . . . . Time . | . . . . . . Total Robot Build Rating . | . . . . . . Part Schematics Acquired . | . . . . . . Parts Built . | . . . . . . Authchips . | . . . . . . Time . | . . . . . . Total Part Build Rating . | . . . . . . Parts Repaired . | . . . . . . Time . | . . . . . . Parts Recycled . | . . . . . . Recycled Matter . | . . . . . . Retrieved Matter . | . . . . . . Retrieved Components . | . . . . . . Parts Scanalyzed . | . . . . . . Part Schematics Acquired . | . . . . . . Parts Damaged . | . . . . . . Bothacking | -11 -10 -9 -9 -7 -7 ------------ Run | Jun Mat Mat Min Zio Dee Used RIF Installer . | . . . . . . Robots Hacked . | . . . . . . Non-combat . | . . . . . . Combat . | . . . . . . Robot Hacks Applied . | . . . . . . Relay Couplers Released . | . . . . . . Fabnet Peak Effective % . | . . . . . . Robots Rewired . | . . . . . . Allies Hacked . | . . . . . . Hacks Repelled . | . . . . . . Allies | -11 -10 -9 -9 -7 -7 -------- Run | Jun Mat Mat Min Zio Dee Total Allies 4 | . . . . 4 . Largest Group 4 | . . . . 4 . Highest-Rated Group 159 | . . . . 159 . Highest-Rated Ally 42 | . . . . 42 . Total Orders . | . . . . . . Ally Attacks . | . . . . . . Total Damage . | . . . . . . Kills . | . . . . . . Allies Corrupted . | . . . . . . Allies Melted . | . . . . . . Intel | -11 -10 -9 -9 -7 -7 ------- Run | Jun Mat Mat Min Zio Dee Robot Analysis Total . | . . . . . . Derelict Logs Recovered . | . . . . . . Drone Launches . | . . . . . . Drone Recoveries . | . . . . . . Exploration | -11 -10 -9 -9 -7 -7 ------------- Run | Jun Mat Mat Min Zio Dee Turns Passed 2744 | 735 427 279 149 774 380 Spaces Moved 1286 | 185 202 147 42 447 263 Core 8 | 8 . . . . . Treads . | . . . . . . Legs 1105 | 177 202 147 42 447 90 Wheels . | . . . . . . Hover . | . . . . . . Flight 173 | . . . . . 173 Fastest Speed 37 | 50 120 120 120 120 37 Average Speed 108 | 116 120 120 120 120 65 Slowest Speed 120 | 120 120 120 120 120 120 Overloaded Moves . | . . . . . . Propulsion Burnouts . | . . . . . . Robots Hopped . | . . . . . . Cave-ins Triggered . | . . . . . . Exploration Rate (%) 28 | 6 26 16 12 58 51 Regions Visited 5 Branch Regions 3 Pre-discovered Areas 1 | . . . . 1 . Known Exits Taken . | . . . . . . Unknown Exits Taken 5 | 1 1 1 1 1 . Scrap Searched 3 | . . . . 3 . Spaces Dug . | . . . . . . Terrain Destroyed . | . . . . . . Melee . | . . . . . . Projectile . | . . . . . . AOE . | . . . . . . Terrain Rammed . | . . . . . . Walls Destroyed . | . . . . . . Machines Disabled . | . . . . . . Actions | -11 -10 -9 -9 -7 -7 --------- Run | Jun Mat Mat Min Zio Dee Total 2392 | 629 295 207 128 687 446 Wait 906 | 393 23 32 74 231 153 Move 1281 | 184 201 146 41 446 263 Hop . | . . . . . . Pick Up 25 | 8 13 2 . 2 . Fast Attach 1 | . . . . 1 . Attach 11 | 7 2 2 . . . Detach . | . . . . . . Swap 17 | . 5 3 4 1 4 Drop 14 | . 4 1 1 6 2 Fire 135 | 37 47 21 8 . 22 Melee . | . . . . . . Ram . | . . . . . . Kick 2 | . . . . . 2 Crush . | . . . . . . Escape Stasis . | . . . . . . Rewire . | . . . . . . Trap . | . . . . . . Miscellaneous . | . . . . . . Route ------- -11/Junkyard -10/Materials -9/Materials -9/Mines -7/Zion -7/Deep Caves History --------- Turn | Location | Event 3 | -11/Junkyard | Discovered new exit (range 15) 736 | -11/Junkyard | Entered Materials 737 | -10/Materials | Build established: Mutant 881 | -10/Materials | Discovered new exit (range 3) 1163 | -10/Materials | Entered another Materials area 1163 | -9/Materials | Evolved 2 slots: Utility x2 1350 | -9/Materials | Build established: Scavenger-Mutant 1403 | -9/Materials | Discovered new exit (range 16) 1442 | -9/Materials | Entered Mines 1447 | -9/Mines | Met a Derelict bent on vengeance 1579 | -9/Mines | A Derelict revealed a hidden shortcut to a safe place 1591 | -9/Mines | Entered Zion 1701 | -7/Zion | Received a visual enhancement algorithm 1811 | -7/Zion | Learned location of Armory (-3) 2009 | -7/Zion | Found Prototype Energy Gun 2113 | -7/Zion | Imprinted 2115 | -7/Zion | Declared Zion's savior 2206 | -7/Zion | Acquired unknown access codes intercepted by a Zionite 2254 | -7/Zion | Discovered new exit (range 9) 2326 | -7/Zion | Opened final containment barrier to the Deep Caves 2346 | -7/Zion | Saw the warning signs outside the Deep Caves entrance 2365 | -7/Zion | Entered Deep Caves 2365 | -7/Deep Caves | Accompanied by 4 allies 2720 | -7/Deep Caves | Attacked by Z-Imprinter 2724 | -7/Deep Caves | Z-Facility disabled 2725 | -7/Deep Caves | Core integrity fell below 50% 2745 | -7/Deep Caves | Core integrity fell below 20% 2745 | -7/Deep Caves | Destroyed by WG-D3A(z) with Zionite Laser-S Last Messages --------------- 02505_ Hvy. Riot Gun destroyed. 02505_ as-84939 destroyed. 02610_ Kicked as-25213. 02611_ Kicked as-25213 out of the way. 02615_ as-25213 suffers critical hit (Burn). 02616_ as-25213 destroyed. 02626_ as-18475 suffers critical hit (Burn). 02627_ Lgt. Ion Engine destroyed. 02630_ Imp. Terrain Scanner destroyed. 02630_ Destroyed Asb. F-torch. 02656_ Acquired 5 matter. 02657_ Acquired 3 matter. 02657_ Acquired 20 matter. 02706_ NEW_ZION: Z-Facility proximity alert. Z-Imprinter: GET AWAY FROM HERE! I've worked too hard for our future just to have you ruin everything! 02724_ Z-Facility disabled. 02727_ Med. Laser destroyed. 02744_ Dropped Flight Unit. 02744_ Dropped Imp. Flight Unit. Map ----- +----------------------------------------------------+ | """""""""""""" | | """""""""""""" | | """""""""" | | """""""""""""" | | """""""""""""" | | """""""""""""" | | """""""""""""" | | """"""?"" " " | | """"""??" | | """"""??? | | """"""?????? | | """"""????? ? | | """"""?????? ?? | | """"""??????" ???? | | """""" ????? ?????? | | """""" ????" ???? ??? | | """""" ??""" ??? ??? | | """""" """"""" ???? ?? | | """"" """"""" ? ??? | | """" """"""" ???? | | """" """"" ? | | """" """ ??? | | """ | | """"""""" "o ?? ?? | | " """" " ? ? | | ? I@= ? ? | | ? ? ? | | ?? ??? ?? | | ?? z ?? ?? ? | | ?? zz ???? ? | | ??? ? ? ?? | | ??? ##### ? ? ?? | | ????## ### ####?????# ???#??? | | ?????# ??## ##??????????#????#?? | | ?????###????### #####????????????????##??? | | ??????????????###########????????????????????????? | | ?????????????????????????????????????????????????? | | | | | | | | | | | | | | | | | | | | | | | | | | | +----------------------------------------------------+ Best States ------------- Heat Dissipation 38 Energy Generation 10 Energy Capacity 125 Matter Stores 300 Matter Capacity 300 Sight Range 16 Terrain Scan Range 16 Terrain Scan Density 160 Evasion (%) 62 Item Schematics ----------------- None Robot Schematics ------------------ None Fabricated ------------ Nothing Alien Tech Used ----------------- None Achievements -------------- Adventurer Signs Are For Wimps Challenges ------------ None Game ------ Seed FluxLightFlamer Manual? 0 Play Time 00:24:13 Cumulative 47.5 hours Start 2023.03.15 @ 15:38:03 End 2023.03.15 @ 15:58:06 Sessions 1 Manual Loads 0 Difficulty Rogue Special Mode None Game No. 65 Rogue 64 Adventurer 1 Explorer 0 Win Type - Total 0 Types 0/0/0/0/0/0/0/0/0 Lore% 24 Gallery% 42 Achievement% 32 Wizard Run 0 Options --------- ASCII 0 Keyboard 0 Movement Mouse Keybinds 0 Fullscreen 1 Font 36/Smallcaps Map View 76x50 Tactical HUD 1 Map Filters NONE Filters NONE Steam 1 RUN: bbf34de1-a602-4980-b719-058724dfb3d7